[Event "Early-Titled-Tuesday-Blitz-April-16-2024"]
[Site "Chess.com"]
[Date "2024.04.16"]
[Round "2"]
[White "NewYearGirl"]
[Black "Aminazinas"]
[Result "1-0"]
[WhiteElo "2363"]
[BlackElo "2558"]
[TimeControl "180+1"]
[EndTime "8:17:18 PDT"]
[Termination "NewYearGirl won by resignation"]

1. e4 {[%clk 0:03:00.9]} 1... e5 {[%clk 0:02:59.6]} 2. Nf3 {[%clk 0:03:01.2]}
2... Nc6 {[%clk 0:02:59.7]} 3. Bc4 {[%clk 0:03:01.8]} 3... Nf6 {[%clk
0:02:58.1]} 4. d4 {[%clk 0:03:01.6]} 4... exd4 {[%clk 0:02:58]} 5. Ng5 {[%clk
0:03:02.1]} 5... d5 {[%clk 0:02:56]} 6. exd5 {[%clk 0:03:03]} 6... Na5 {[%clk
0:02:47]} 7. Qe2+ {[%clk 0:03:03]} 7... Be7 {[%clk 0:02:41.4]} 8. d6 {[%clk
0:02:59.7]} 8... Nxc4 {[%clk 0:02:41]} 9. dxe7 {[%clk 0:02:58.2]} 9... Qxe7
{[%clk 0:02:39.8]} 10. Qxe7+ {[%clk 0:02:52.6]} 10... Kxe7 {[%clk 0:02:40.7]}
11. b3 {[%clk 0:02:53.1]} 11... Nd6 {[%clk 0:02:37.6]} 12. Ba3 {[%clk
0:02:46.7]} 12... Bf5 {[%clk 0:02:33.4]} 13. Kd1 {[%clk 0:02:36.6]} 13... Bg6
{[%clk 0:02:22.4]} 14. Nd2 {[%clk 0:02:25.8]} 14... Kd7 {[%clk 0:02:19.5]} 15.
Ngf3 {[%clk 0:02:23.3]} 15... Nb5 {[%clk 0:02:15.5]} 16. Bb2 {[%clk 0:02:19]}
16... c5 {[%clk 0:02:11.3]} 17. Ne5+ {[%clk 0:02:16.2]} 17... Kc7 {[%clk
0:02:07.2]} 18. f3 {[%clk 0:02:13.6]} 18... Rhe8 {[%clk 0:02:05.7]} 19. Ndc4
{[%clk 0:02:12.5]} 19... Nd5 {[%clk 0:02:01.3]} 20. Re1 {[%clk 0:02:02.7]} 20...
Rad8 {[%clk 0:01:52.8]} 21. a4 {[%clk 0:02:01.7]} 21... Nbc3+ {[%clk 0:01:49.9]}
22. Kd2 {[%clk 0:02:01.6]} 22... Re6 {[%clk 0:01:33.2]} 23. Nxg6 {[%clk
0:01:51]} 23... Rxg6 {[%clk 0:01:32.3]} 24. g4 {[%clk 0:01:51]} 24... h5 {[%clk
0:01:31.1]} 25. Ne5 {[%clk 0:01:49.3]} 25... Rf6 {[%clk 0:01:28.4]} 26. g5
{[%clk 0:01:37.4]} 26... Rf5 {[%clk 0:01:27.7]} 27. Bxc3 {[%clk 0:01:33.2]}
27... Nxc3 {[%clk 0:01:22.3]} 28. Nd3 {[%clk 0:01:28.7]} 28... Kd6 {[%clk
0:01:16.3]} 29. f4 {[%clk 0:01:26.8]} 29... Nd5 {[%clk 0:01:10.6]} 30. Re5
{[%clk 0:01:25.5]} 30... Rxe5 {[%clk 0:01:02.4]} 31. fxe5+ {[%clk 0:01:26.4]}
31... Kc6 {[%clk 0:01:02.7]} 32. Rf1 {[%clk 0:01:26]} 32... Rf8 {[%clk
0:00:58.9]} 33. g6 {[%clk 0:01:22.3]} 33... f6 {[%clk 0:00:56]} 34. Rf5 {[%clk
0:01:20]} 34... Rh8 {[%clk 0:00:43.9]} 35. exf6 {[%clk 0:01:20.2]} 35... gxf6
{[%clk 0:00:43.9]} 36. Nf4 {[%clk 0:01:11.8]} 36... Nxf4 {[%clk 0:00:43.1]} 37.
Rxf6+ {[%clk 0:01:10.8]} 37... Kd5 {[%clk 0:00:38.6]} 38. Rxf4 {[%clk
0:01:11.2]} 38... Ke5 {[%clk 0:00:38.4]} 39. Rf7 {[%clk 0:01:10.9]} 39... Rg8
{[%clk 0:00:36]} 40. g7 {[%clk 0:01:11.4]} 40... b6 {[%clk 0:00:29.4]} 41. Rxa7
{[%clk 0:01:11.2]} 41... Kf6 {[%clk 0:00:22.7]} 42. Rb7 {[%clk 0:01:11.3]} 42...
Re8 {[%clk 0:00:20.6]} 43. c3 {[%clk 0:01:01]} 43... dxc3+ {[%clk 0:00:20.5]}
44. Kxc3 {[%clk 0:01:01.5]} 44... Ke5 {[%clk 0:00:20.8]} 45. Rxb6 {[%clk
0:01:00.7]} 45... Rg8 {[%clk 0:00:20.5]} 46. Rg6 {[%clk 0:00:59.8]} 46... Kf5
{[%clk 0:00:20.8]} 47. Rg1 {[%clk 0:00:58.9]} 47... Kf6 {[%clk 0:00:21.3]} 48.
Kc4 {[%clk 0:00:58.3]} 48... Kf7 {[%clk 0:00:21.7]} 49. Kxc5 {[%clk 0:00:58.1]}
49... Rc8+ {[%clk 0:00:22.1]} 50. Kb4 {[%clk 0:00:57.3]} 50... Kg8 {[%clk
0:00:22.2]} 51. a5 {[%clk 0:00:57.4]} 51... Rc2 {[%clk 0:00:22.2]} 52. h4 {[%clk
0:00:57.1]} 52... Rh2 {[%clk 0:00:21.8]} 53. a6 {[%clk 0:00:56.3]} 53... Rxh4+
{[%clk 0:00:22.7]} 54. Ka5 {[%clk 0:00:55.9]} 54... Rh2 {[%clk 0:00:22.9]} 55.
a7 {[%clk 0:00:54.2]} 55... Ra2+ {[%clk 0:00:23.8]} 56. Kb6 {[%clk 0:00:54.2]}
56... h4 {[%clk 0:00:24.7]} 57. Kb7 {[%clk 0:00:54.7]} 57... h3 {[%clk
0:00:24.9]} 58. a8=Q+ {[%clk 0:00:55.2]} 58... Rxa8 {[%clk 0:00:25.1]} 59. Kxa8
{[%clk 0:00:56.1]} 59... h2 {[%clk 0:00:25.6]} 60. Rh1 {[%clk 0:00:56.5]} 60...
Kxg7 {[%clk 0:00:26.5]} 61. Rxh2 {[%clk 0:00:56.9]} 1-0

[Event "Early-Titled-Tuesday-Blitz-April-16-2024"]
[Site "Chess.com"]
[Date "2024.04.16"]
[Round "2"]
[White "dosto07"]
[Black "UmarovSabir"]
[Result "1-0"]
[WhiteElo "2519"]
[BlackElo "2287"]
[TimeControl "180+1"]
[EndTime "8:17:18 PDT"]
[Termination "dosto07 won on time"]

1. e4 {[%clk 0:03:00.9]} 1... c6 {[%clk 0:03:00]} 2. d4 {[%clk 0:03:00.3]} 2...
d5 {[%clk 0:03:00]} 3. exd5 {[%clk 0:02:59.7]} 3... cxd5 {[%clk 0:02:59.2]} 4.
Bd3 {[%clk 0:03:00.3]} 4... Nf6 {[%clk 0:02:58.5]} 5. c3 {[%clk 0:03:00.7]} 5...
g5 {[%clk 0:02:58.8]} 6. Bxg5 {[%clk 0:02:57.6]} 6... Rg8 {[%clk 0:02:58.3]} 7.
Bxf6 {[%clk 0:02:55.5]} 7... exf6 {[%clk 0:02:59.2]} 8. Ne2 {[%clk 0:02:38.1]}
8... Nc6 {[%clk 0:02:42.6]} 9. Ng3 {[%clk 0:02:34.3]} 9... Be6 {[%clk
0:02:39.2]} 10. Nd2 {[%clk 0:02:30.2]} 10... Qb6 {[%clk 0:02:37.2]} 11. Qb3
{[%clk 0:02:28.5]} 11... Qc7 {[%clk 0:01:42.6]} 12. O-O {[%clk 0:02:21.7]} 12...
O-O-O {[%clk 0:01:40.8]} 13. Nf3 {[%clk 0:01:52.3]} 13... Bd6 {[%clk 0:01:32.4]}
14. Rac1 {[%clk 0:01:42.9]} 14... Kb8 {[%clk 0:01:24.7]} 15. Rfe1 {[%clk
0:01:34.6]} 15... h5 {[%clk 0:01:01.2]} 16. Nf5 {[%clk 0:01:15.9]} 16... Bf4
{[%clk 0:00:40.3]} 17. Rc2 {[%clk 0:01:04.4]} 17... Na5 {[%clk 0:00:34.4]} 18.
Qa4 {[%clk 0:00:48.9]} 18... Bd7 {[%clk 0:00:25.5]} 19. Qa3 {[%clk 0:00:48.9]}
19... Nc4 {[%clk 0:00:22.5]} 20. Qe7 {[%clk 0:00:28.8]} 20... Rde8 {[%clk
0:00:08.5]} 21. Qxf6 {[%clk 0:00:28.4]} 21... Bxh2+ {[%clk 0:00:08.5]} 22. Kf1
{[%clk 0:00:23.3]} 22... Rxe1+ {[%clk 0:00:05.5]} 23. Nxe1 {[%clk 0:00:20.4]}
23... Rg6 {[%clk 0:00:02.9]} 24. Qh8+ {[%clk 0:00:18]} 24... Bc8 {[%clk
0:00:01.8]} 25. Qxh5 {[%clk 0:00:16.9]} 25... Bd6 {[%clk 0:00:02]} 26. Nxd6
{[%clk 0:00:16.2]} 26... Nxd6 {[%clk 0:00:02.9]} 27. Bxg6 {[%clk 0:00:16.1]}
27... fxg6 {[%clk 0:00:03.8]} 28. Qxg6 {[%clk 0:00:16]} 28... Bf5 {[%clk
0:00:03.4]} 29. Qg8+ {[%clk 0:00:14.6]} 29... Nc8 {[%clk 0:00:03.9]} 30. Re2
{[%clk 0:00:13.6]} 30... Qh2 {[%clk 0:00:04]} 31. Qg3+ {[%clk 0:00:10.9]} 1-0

[Event "Early-Titled-Tuesday-Blitz-April-16-2024"]
[Site "Chess.com"]
[Date "2024.04.16"]
[Round "2"]
[White "lluiss"]
[Black "balack95"]
[Result "0-1"]
[WhiteElo "2083"]
[BlackElo "2447"]
[TimeControl "180+1"]
[EndTime "8:17:18 PDT"]
[Termination "balack95 won by resignation"]

1. Nf3 {[%clk 0:02:58.3]} 1... d5 {[%clk 0:02:59.6]} 2. d4 {[%clk 0:02:57.4]}
2... e6 {[%clk 0:02:52.2]} 3. c4 {[%clk 0:02:57.3]} 3... h6 {[%clk 0:02:51.3]}
4. cxd5 {[%clk 0:02:57]} 4... exd5 {[%clk 0:02:51.4]} 5. Nc3 {[%clk 0:02:57.9]}
5... Nf6 {[%clk 0:02:49.8]} 6. Bf4 {[%clk 0:02:57.6]} 6... Bd6 {[%clk
0:02:50.1]} 7. Bxd6 {[%clk 0:02:53.3]} 7... Qxd6 {[%clk 0:02:51]} 8. e3 {[%clk
0:02:53.3]} 8... c6 {[%clk 0:02:50.6]} 9. Be2 {[%clk 0:02:53.1]} 9... O-O {[%clk
0:02:49.6]} 10. O-O {[%clk 0:02:53]} 10... Bf5 {[%clk 0:02:50.2]} 11. Ne5 {[%clk
0:02:48.7]} 11... Nbd7 {[%clk 0:02:49]} 12. Nxd7 {[%clk 0:02:45.8]} 12... Nxd7
{[%clk 0:02:48.3]} 13. Qd2 {[%clk 0:02:34.2]} 13... a5 {[%clk 0:02:46.2]} 14.
Rae1 {[%clk 0:02:06.8]} 14... b5 {[%clk 0:02:45.5]} 15. Bd3 {[%clk 0:01:57.9]}
15... Bxd3 {[%clk 0:02:45.5]} 16. Qxd3 {[%clk 0:01:58.8]} 16... f5 {[%clk
0:02:44.8]} 17. f4 {[%clk 0:01:51.8]} 17... a4 {[%clk 0:02:42.4]} 18. Nb1 {[%clk
0:01:51.6]} 18... Nb6 {[%clk 0:02:23.7]} 19. Nd2 {[%clk 0:01:41.8]} 19... Nc4
{[%clk 0:02:23.6]} 20. Qc3 {[%clk 0:01:32.3]} 20... Rfe8 {[%clk 0:02:14.4]} 21.
Nf3 {[%clk 0:01:32.2]} 21... b4 {[%clk 0:02:11.9]} 22. Qc1 {[%clk 0:01:31.4]}
22... c5 {[%clk 0:02:01.5]} 23. Ne5 {[%clk 0:01:31.3]} 23... cxd4 {[%clk
0:01:38.7]} 24. exd4 {[%clk 0:01:32.2]} 24... Rac8 {[%clk 0:01:37.4]} 25. Qa1
{[%clk 0:00:39.1]} 25... Nd2 {[%clk 0:01:32.3]} 26. Rf2 {[%clk 0:00:37.9]} 26...
Ne4 {[%clk 0:01:31.2]} 27. Rfe2 {[%clk 0:00:36.5]} 27... Rc7 {[%clk 0:01:27.6]}
28. Qd1 {[%clk 0:00:36.5]} 28... Qa6 {[%clk 0:01:23.9]} 29. Rc2 {[%clk
0:00:35.8]} 29... Rec8 {[%clk 0:01:22.8]} 30. Ree2 {[%clk 0:00:36]} 30... Kh7
{[%clk 0:01:17.9]} 31. Rxc7 {[%clk 0:00:34]} 31... Rxc7 {[%clk 0:01:18.8]} 32.
Rc2 {[%clk 0:00:34.2]} 32... Rxc2 {[%clk 0:01:15]} 33. Qxc2 {[%clk 0:00:33.8]}
33... Qb6 {[%clk 0:01:15.9]} 34. Nf3 {[%clk 0:00:30.4]} 34... b3 {[%clk
0:01:12.8]} 35. axb3 {[%clk 0:00:29.8]} 35... axb3 {[%clk 0:01:13.7]} 36. Qd1
{[%clk 0:00:25.8]} 36... Qb4 {[%clk 0:01:13.5]} 37. h3 {[%clk 0:00:23.7]} 37...
Qc4 {[%clk 0:01:10.9]} 38. Kh2 {[%clk 0:00:22.1]} 38... Qc2 {[%clk 0:01:09.8]}
39. Qa1 {[%clk 0:00:17.8]} 39... Qf2 {[%clk 0:01:09]} 40. Qa7 {[%clk 0:00:14.1]}
40... Qg3+ {[%clk 0:01:07.8]} 41. Kg1 {[%clk 0:00:13.4]} 41... Qxf4 {[%clk
0:01:07.1]} 42. Qd7 {[%clk 0:00:11.2]} 42... Nf6 {[%clk 0:01:03.6]} 43. Qa7
{[%clk 0:00:11.2]} 43... Qc1+ {[%clk 0:01:03.3]} 44. Kh2 {[%clk 0:00:10.6]}
44... Qxb2 {[%clk 0:01:03.9]} 45. Ne5 {[%clk 0:00:10.8]} 45... Qf2 {[%clk
0:00:56.1]} 46. Qf7 {[%clk 0:00:09.7]} 46... Qf4+ {[%clk 0:00:55.4]} 47. Kh1
{[%clk 0:00:08]} 47... Qg5 {[%clk 0:00:49.3]} 48. Nf3 {[%clk 0:00:06.4]} 48...
Qc1+ {[%clk 0:00:49.4]} 49. Kh2 {[%clk 0:00:05.9]} 49... b2 {[%clk 0:00:49.8]}
50. Nh4 {[%clk 0:00:06.1]} 50... Qf4+ {[%clk 0:00:49.1]} 51. g3 {[%clk
0:00:05.2]} 51... Qxh4 {[%clk 0:00:48.4]} 52. gxh4 {[%clk 0:00:03.8]} 52... b1=Q
{[%clk 0:00:48.8]} 0-1

[Event "Early-Titled-Tuesday-Blitz-April-16-2024"]
[Site "Chess.com"]
[Date "2024.04.16"]
[Round "2"]
[White "JiiHart"]
[Black "ATM622"]
[Result "0-1"]
[WhiteElo "2159"]
[BlackElo "2466"]
[TimeControl "180+1"]
[EndTime "8:17:19 PDT"]
[Termination "ATM622 won by checkmate"]

1. e4 {[%clk 0:03:00.9]} 1... c6 {[%clk 0:02:59.3]} 2. d4 {[%clk 0:03:00.7]}
2... d5 {[%clk 0:02:58.7]} 3. Nc3 {[%clk 0:03:01.3]} 3... dxe4 {[%clk
0:02:58.6]} 4. Nxe4 {[%clk 0:03:02.2]} 4... Nf6 {[%clk 0:02:58.7]} 5. Nxf6+
{[%clk 0:03:02.1]} 5... exf6 {[%clk 0:02:58.4]} 6. Bf4 {[%clk 0:03:01.9]} 6...
Bd6 {[%clk 0:02:58.5]} 7. Qf3 {[%clk 0:03:02.1]} 7... O-O {[%clk 0:02:51.3]} 8.
Bd3 {[%clk 0:03:02]} 8... Re8+ {[%clk 0:02:46.5]} 9. Ne2 {[%clk 0:03:02.2]} 9...
Bxf4 {[%clk 0:02:11.1]} 10. Qxf4 {[%clk 0:03:03.1]} 10... Nd7 {[%clk 0:02:04.5]}
11. h4 {[%clk 0:03:03.1]} 11... Nf8 {[%clk 0:02:03.4]} 12. h5 {[%clk 0:03:03.4]}
12... h6 {[%clk 0:01:56.9]} 13. O-O-O {[%clk 0:03:01.2]} 13... Ne6 {[%clk
0:01:49.2]} 14. Qd2 {[%clk 0:02:52]} 14... Qd5 {[%clk 0:01:43.1]} 15. c4 {[%clk
0:02:45.2]} 15... Qd6 {[%clk 0:01:36.2]} 16. Bc2 {[%clk 0:02:31.1]} 16... b5
{[%clk 0:01:26]} 17. Qd3 {[%clk 0:02:29.5]} 17... bxc4 {[%clk 0:01:22.5]} 18.
Qxc4 {[%clk 0:01:56]} 18... Rb8 {[%clk 0:01:21]} 19. g3 {[%clk 0:01:46.3]} 19...
Bd7 {[%clk 0:01:11.9]} 20. Nf4 {[%clk 0:01:22.3]} 20... Nxf4 {[%clk 0:01:02]}
21. gxf4 {[%clk 0:01:21.5]} 21... Rb4 {[%clk 0:00:57.3]} 22. Qd3 {[%clk
0:01:20.6]} 22... Qxf4+ {[%clk 0:00:57]} 23. Kb1 {[%clk 0:01:19.5]} 23... f5
{[%clk 0:00:49.3]} 24. Rhe1 {[%clk 0:01:00.8]} 24... Rxe1 {[%clk 0:00:32.1]} 25.
Rxe1 {[%clk 0:01:00.4]} 25... Rxd4 {[%clk 0:00:29.4]} 26. Qe3 {[%clk 0:00:17.6]}
26... Qxe3 {[%clk 0:00:27.5]} 27. fxe3 {[%clk 0:00:17.3]} 27... Rh4 {[%clk
0:00:24.8]} 28. Rd1 {[%clk 0:00:16.1]} 28... Be6 {[%clk 0:00:19.9]} 29. e4
{[%clk 0:00:16.4]} 29... fxe4 {[%clk 0:00:17.3]} 30. Rd4 {[%clk 0:00:13]} 30...
c5 {[%clk 0:00:13.6]} 31. Rd8+ {[%clk 0:00:11.8]} 31... Kh7 {[%clk 0:00:13]} 32.
a4 {[%clk 0:00:11.4]} 32... Rh1+ {[%clk 0:00:10.1]} 33. Bd1 {[%clk 0:00:10.4]}
33... Bb3 {[%clk 0:00:08.9]} 34. Kc1 {[%clk 0:00:09.9]} 34... e3 {[%clk
0:00:09.3]} 35. Re8 {[%clk 0:00:07.6]} 35... Rxd1# {[%clk 0:00:08.3]} 0-1

[Event "Early-Titled-Tuesday-Blitz-April-16-2024"]
[Site "Chess.com"]
[Date "2024.04.16"]
[Round "2"]
[White "Witik"]
[Black "AsaHoffmann"]
[Result "1-0"]
[WhiteElo "2709"]
[BlackElo "2399"]
[TimeControl "180+1"]
[EndTime "8:17:20 PDT"]
[Termination "Witik won on time"]

1. Nf3 {[%clk 0:02:58.5]} 1... d6 {[%clk 0:02:58.9]} 2. d4 {[%clk 0:02:58.4]}
2... Bg4 {[%clk 0:02:58]} 3. g3 {[%clk 0:02:56.4]} 3... Bxf3 {[%clk 0:02:56.9]}
4. exf3 {[%clk 0:02:57.3]} 4... c6 {[%clk 0:02:57]} 5. Nd2 {[%clk 0:02:50.8]}
5... e6 {[%clk 0:02:57]} 6. c3 {[%clk 0:02:47.7]} 6... g6 {[%clk 0:02:57.1]} 7.
h4 {[%clk 0:02:46.4]} 7... h5 {[%clk 0:02:52.2]} 8. Bd3 {[%clk 0:02:45.3]} 8...
Bg7 {[%clk 0:02:51.9]} 9. O-O {[%clk 0:02:43.1]} 9... Ne7 {[%clk 0:02:46.2]} 10.
Re1 {[%clk 0:02:43.3]} 10... Nd7 {[%clk 0:02:44.8]} 11. f4 {[%clk 0:02:43.5]}
11... Nf5 {[%clk 0:02:39.9]} 12. Nf3 {[%clk 0:02:42.3]} 12... Qe7 {[%clk
0:02:35.6]} 13. Ng5 {[%clk 0:02:33.5]} 13... Bh6 {[%clk 0:02:28.7]} 14. Qb3
{[%clk 0:02:25.8]} 14... Bxg5 {[%clk 0:02:23.4]} 15. fxg5 {[%clk 0:02:25.4]}
15... O-O-O {[%clk 0:02:22.5]} 16. Bf4 {[%clk 0:02:16.9]} 16... Nb6 {[%clk
0:02:18.7]} 17. a4 {[%clk 0:02:08]} 17... Nd5 {[%clk 0:02:13.5]} 18. Bd2 {[%clk
0:02:07.9]} 18... f6 {[%clk 0:02:08.8]} 19. a5 {[%clk 0:01:55.9]} 19... a6
{[%clk 0:02:04.2]} 20. Qa4 {[%clk 0:01:49.8]} 20... Nc7 {[%clk 0:01:32.4]} 21.
gxf6 {[%clk 0:01:46.6]} 21... Qxf6 {[%clk 0:01:24.6]} 22. Bg5 {[%clk 0:01:47]}
22... Qf7 {[%clk 0:01:23.7]} 23. Bxd8 {[%clk 0:01:37.4]} 23... Rxd8 {[%clk
0:01:23.1]} 24. Qc2 {[%clk 0:01:25.8]} 24... Rf8 {[%clk 0:01:17.2]} 25. Re4
{[%clk 0:01:24.8]} 25... Nd5 {[%clk 0:01:14.3]} 26. Rae1 {[%clk 0:01:24.5]}
26... Re8 {[%clk 0:01:04.1]} 27. Qd2 {[%clk 0:01:19.5]} 27... Nf6 {[%clk
0:01:02.9]} 28. R4e2 {[%clk 0:01:17.2]} 28... Ng4 {[%clk 0:00:58.8]} 29. Qg5
{[%clk 0:01:08.3]} 29... e5 {[%clk 0:00:49.5]} 30. f3 {[%clk 0:00:49.1]} 30...
Ngh6 {[%clk 0:00:44.9]} 31. dxe5 {[%clk 0:00:44.4]} 31... dxe5 {[%clk
0:00:43.8]} 32. Rxe5 {[%clk 0:00:43.7]} 32... Rxe5 {[%clk 0:00:43.2]} 33. Rxe5
{[%clk 0:00:44.6]} 33... Kd7 {[%clk 0:00:20.8]} 34. Re4 {[%clk 0:00:28.5]} 34...
Qg7 {[%clk 0:00:18.4]} 35. Bc4 {[%clk 0:00:25.9]} 35... Ng8 {[%clk 0:00:13.9]}
36. Be6+ {[%clk 0:00:20.5]} 36... Kc7 {[%clk 0:00:10.4]} 37. Bxf5 {[%clk
0:00:21.1]} 37... Nf6 {[%clk 0:00:08.5]} 38. Qxg6 {[%clk 0:00:18.5]} 38... Qxg6
{[%clk 0:00:06.3]} 39. Bxg6 {[%clk 0:00:18.7]} 39... Nxe4 {[%clk 0:00:06.3]} 40.
Bxe4 {[%clk 0:00:19]} 1-0

[Event "Early-Titled-Tuesday-Blitz-April-16-2024"]
[Site "Chess.com"]
[Date "2024.04.16"]
[Round "2"]
[White "Naruto75_3"]
[Black "wild3000"]
[Result "1-0"]
[WhiteElo "2352"]
[BlackElo "2523"]
[TimeControl "180+1"]
[EndTime "8:17:21 PDT"]
[Termination "Naruto75_3 won by checkmate"]

1. d4 {[%clk 0:03:00.5]} 1... e6 {[%clk 0:01:51.7]} 2. c4 {[%clk 0:02:58.9]}
2... Nf6 {[%clk 0:01:52.6]} 3. Nc3 {[%clk 0:02:58.9]} 3... d5 {[%clk 0:01:53.1]}
4. cxd5 {[%clk 0:02:57.1]} 4... exd5 {[%clk 0:01:53]} 5. Bg5 {[%clk 0:02:57.5]}
5... c6 {[%clk 0:01:53.2]} 6. e3 {[%clk 0:02:54.2]} 6... Be7 {[%clk 0:01:53.7]}
7. Bd3 {[%clk 0:02:51.7]} 7... Nbd7 {[%clk 0:01:54.1]} 8. Nge2 {[%clk
0:02:50.7]} 8... O-O {[%clk 0:01:54.1]} 9. O-O {[%clk 0:02:49.1]} 9... h6 {[%clk
0:01:54.2]} 10. Bh4 {[%clk 0:02:45.6]} 10... Nh5 {[%clk 0:01:46.5]} 11. Bxe7
{[%clk 0:02:41.8]} 11... Qxe7 {[%clk 0:01:46.6]} 12. Kh1 {[%clk 0:02:41]} 12...
Ndf6 {[%clk 0:01:41.2]} 13. Qc2 {[%clk 0:02:38.5]} 13... g6 {[%clk 0:01:38.8]}
14. Rae1 {[%clk 0:02:30.7]} 14... Ng7 {[%clk 0:01:20.7]} 15. Ng3 {[%clk
0:02:25.7]} 15... h5 {[%clk 0:01:17.5]} 16. Qd2 {[%clk 0:02:04.3]} 16... h4
{[%clk 0:01:16.4]} 17. Nge2 {[%clk 0:02:00.4]} 17... h3 {[%clk 0:01:15.4]} 18.
g3 {[%clk 0:01:58.4]} 18... c5 {[%clk 0:01:15.6]} 19. dxc5 {[%clk 0:01:54.2]}
19... Qxc5 {[%clk 0:01:15.4]} 20. Nd4 {[%clk 0:01:50.2]} 20... a6 {[%clk
0:01:10]} 21. f3 {[%clk 0:01:45.5]} 21... Bd7 {[%clk 0:01:05.4]} 22. Qf2 {[%clk
0:01:43.3]} 22... b5 {[%clk 0:01:04]} 23. g4 {[%clk 0:01:35.7]} 23... b4 {[%clk
0:00:56.7]} 24. Nd1 {[%clk 0:01:34.3]} 24... Ne6 {[%clk 0:00:51.4]} 25. Qh4
{[%clk 0:01:23]} 25... Kg7 {[%clk 0:00:47.5]} 26. Nf5+ {[%clk 0:01:10.2]} 26...
gxf5 {[%clk 0:00:43.6]} 27. gxf5 {[%clk 0:01:03.4]} 27... Rg8 {[%clk 0:00:14.1]}
28. Rg1+ {[%clk 0:00:54.9]} 28... Kf8 {[%clk 0:00:14]} 29. Qxf6 {[%clk
0:00:47.2]} 29... Rxg1+ {[%clk 0:00:13.4]} 30. Rxg1 {[%clk 0:00:48]} 30... Nc7
{[%clk 0:00:08.9]} 31. Rg7 {[%clk 0:00:43.9]} 31... Be8 {[%clk 0:00:05.7]} 32.
Rh7 {[%clk 0:00:37.2]} 32... a5 {[%clk 0:00:01.7]} 33. Rh8# {[%clk 0:00:18.1]}
1-0

[Event "Early-Titled-Tuesday-Blitz-April-16-2024"]
[Site "Chess.com"]
[Date "2024.04.16"]
[Round "2"]
[White "DvaHrasta"]
[Black "PonyQueen07"]
[Result "1-0"]
[WhiteElo "2469"]
[BlackElo "2180"]
[TimeControl "180+1"]
[EndTime "8:17:24 PDT"]
[Termination "DvaHrasta won by checkmate"]

1. c4 {[%clk 0:03:00.9]} 1... e5 {[%clk 0:02:59.6]} 2. g3 {[%clk 0:03:00.7]}
2... c6 {[%clk 0:02:58.5]} 3. Nf3 {[%clk 0:02:58.3]} 3... e4 {[%clk 0:02:46.2]}
4. Nd4 {[%clk 0:02:57.7]} 4... d5 {[%clk 0:02:43.1]} 5. cxd5 {[%clk 0:02:57.7]}
5... cxd5 {[%clk 0:02:41.4]} 6. d3 {[%clk 0:02:53.3]} 6... exd3 {[%clk
0:02:37.3]} 7. Qxd3 {[%clk 0:02:51.1]} 7... Nc6 {[%clk 0:02:36]} 8. Bg2 {[%clk
0:02:47]} 8... Nf6 {[%clk 0:02:31.4]} 9. Nc3 {[%clk 0:02:45.5]} 9... Bc5 {[%clk
0:02:29.3]} 10. Nb3 {[%clk 0:02:40.2]} 10... Bb4 {[%clk 0:02:17.9]} 11. O-O
{[%clk 0:02:39.7]} 11... Bxc3 {[%clk 0:02:17.5]} 12. Qxc3 {[%clk 0:02:31.4]}
12... O-O {[%clk 0:02:15.5]} 13. Bg5 {[%clk 0:02:31.1]} 13... d4 {[%clk
0:02:14.3]} 14. Qc5 {[%clk 0:02:19.4]} 14... Be6 {[%clk 0:01:51.7]} 15. Rfd1
{[%clk 0:02:17.7]} 15... Rc8 {[%clk 0:01:33.7]} 16. Nxd4 {[%clk 0:01:57.5]}
16... Nxd4 {[%clk 0:01:03.8]} 17. Qxd4 {[%clk 0:01:56.9]} 17... Qxd4 {[%clk
0:00:59.5]} 18. Rxd4 {[%clk 0:01:56.4]} 18... Rfd8 {[%clk 0:00:52.4]} 19. Rxd8+
{[%clk 0:01:53]} 19... Rxd8 {[%clk 0:00:52.6]} 20. b3 {[%clk 0:01:46.9]} 20...
h6 {[%clk 0:00:51.2]} 21. Bxf6 {[%clk 0:01:46.3]} 21... gxf6 {[%clk 0:00:51.6]}
22. Bxb7 {[%clk 0:01:44.3]} 22... Rd2 {[%clk 0:00:51.2]} 23. Ba6 {[%clk
0:01:36.3]} 23... Bh3 {[%clk 0:00:31]} 24. f4 {[%clk 0:01:31.4]} 24... Kg7
{[%clk 0:00:28.2]} 25. Bd3 {[%clk 0:01:27.9]} 25... Kf8 {[%clk 0:00:19.7]} 26.
Kf2 {[%clk 0:01:26.7]} 26... Ke7 {[%clk 0:00:19.2]} 27. Ke3 {[%clk 0:01:26.6]}
27... Rb2 {[%clk 0:00:19]} 28. Kd4 {[%clk 0:01:26.6]} 28... Bf5 {[%clk
0:00:09.2]} 29. Kc3 {[%clk 0:01:17.9]} 29... Bxd3 {[%clk 0:00:09.2]} 30. Kxb2
{[%clk 0:01:17.8]} 30... Be4 {[%clk 0:00:08.2]} 31. Rc1 {[%clk 0:01:14.5]} 31...
Kd6 {[%clk 0:00:07.6]} 32. Rc4 {[%clk 0:01:14.4]} 32... f5 {[%clk 0:00:07.5]}
33. Ra4 {[%clk 0:01:13]} 33... Kd5 {[%clk 0:00:06.9]} 34. Kc3 {[%clk 0:01:09.5]}
34... Bg2 {[%clk 0:00:02.3]} 35. Rxa7 {[%clk 0:01:06.6]} 35... Bf1 {[%clk
0:00:02.4]} 36. Kd3 {[%clk 0:01:03]} 36... Bg2 {[%clk 0:00:01.6]} 37. Rxf7
{[%clk 0:01:01.2]} 37... Ke6 {[%clk 0:00:02.5]} 38. Rh7 {[%clk 0:01:00.2]} 38...
Kd5 {[%clk 0:00:03.4]} 39. Rxh6 {[%clk 0:00:58.7]} 39... Be4+ {[%clk 0:00:04.3]}
40. Ke3 {[%clk 0:00:55.5]} 40... Bb1 {[%clk 0:00:05.2]} 41. Ra6 {[%clk
0:00:54.7]} 41... Bxa2 {[%clk 0:00:06.1]} 42. Rxa2 {[%clk 0:00:54.2]} 42... Kc5
{[%clk 0:00:07]} 43. h4 {[%clk 0:00:52.6]} 43... Kb4 {[%clk 0:00:07.9]} 44. Rd2
{[%clk 0:00:48.5]} 44... Kxb3 {[%clk 0:00:08.8]} 45. h5 {[%clk 0:00:48.5]} 45...
Kc3 {[%clk 0:00:09.7]} 46. h6 {[%clk 0:00:42.9]} 46... Kc4 {[%clk 0:00:10.6]}
47. h7 {[%clk 0:00:42.8]} 47... Kb4 {[%clk 0:00:11.5]} 48. h8=Q {[%clk
0:00:41.5]} 48... Kb3 {[%clk 0:00:12.4]} 49. Qb8+ {[%clk 0:00:40.1]} 49... Kc3
{[%clk 0:00:13.3]} 50. Qc7+ {[%clk 0:00:39]} 50... Kb3 {[%clk 0:00:12.5]} 51.
Qb6+ {[%clk 0:00:38.8]} 51... Kc3 {[%clk 0:00:12.6]} 52. Qc5+ {[%clk 0:00:38.9]}
52... Kb3 {[%clk 0:00:13.1]} 53. Qd5+ {[%clk 0:00:36.6]} 53... Kc3 {[%clk
0:00:13.1]} 54. Qd4+ {[%clk 0:00:36.8]} 54... Kb3 {[%clk 0:00:13.2]} 55. Rb2+
{[%clk 0:00:37]} 55... Ka3 {[%clk 0:00:13.4]} 56. Qb4# {[%clk 0:00:37]} 1-0